Workbook

Sheet Tabelle1
A1: 'File 1-10 = Tastenecho Ralf
A2: File 11-20 = Tastenecho Frau
A3: File 21-30 = Tastenecho Tochter
A4: File 31-40 = Tastenecho Sohn
A5: 'File 41-50 = Code1 ok
A6: 'File 51-60 = Code2 ok
A7: 'File 61-70 = Code3 ok
A8: 'File 71-80 = Code4 ok
A9: 'File 81-90 = Code falsch
A10: 'File 91-100 = Code 3x hintereinander falsch + Klingel
A11: 'File 101-110 = Zeitüberschreitung Eingabe
A12: 'File 111-120 = Reset Eingabe
A13: 'File 121-130 = frei
A14: 'File 131-140 = frei
A15: 'File 141-150 = frei
A16: 'File 151-160 = frei
A17: 'File 161-170 = frei
A18: 'File 171-180 = frei
A19: 'File 181-190 = frei
A20: 'File 191-200 = frei
A21: 'File 201-210 = frei
A22: 'File 211-220 = frei
A23: 'File 221-230 = frei
A24: 'File 231-240 = frei
A25: 'File 241-250 = frei

Sheet Tabelle2
A1: Datei | B1: Thema | C1: Text
A2: 001.wav | B2: Tastenecho Ralf
A3: 002.wav | B3: Tastenecho Ralf
A4: 003.wav | B4: Tastenecho Ralf
A5: 004.wav | B5: Tastenecho Ralf
A6: 004.wav | B6: Tastenecho Ralf
A7: 005.wav | B7: Tastenecho Ralf
A8: 006.wav | B8: Tastenecho Ralf
A9: 007.wav | B9: Tastenecho Ralf
A10: 009.wav | B10: Tastenecho Ralf
A11: 010.wav | B11: Tastenecho Ralf
A12: 011.wav | B12: Tastenecho Frau
A13: 012.wav | B13: Tastenecho Frau
A14: 013.wav | B14: Tastenecho Frau
A15: 014.wav | B15: Tastenecho Frau
A16: 015.wav | B16: Tastenecho Frau
A17: 016.wav | B17: Tastenecho Frau
A18: 017.wav | B18: Tastenecho Frau
A19: 018.wav | B19: Tastenecho Frau
A20: 019.wav | B20: Tastenecho Frau
A21: 020.wav | B21: Tastenecho Frau
A22: 021.wav | B22: Tastenecho Tochter
A23: 022.wav | B23: Tastenecho Tochter
A24: 023.wav | B24: Tastenecho Tochter
A25: 024.wav | B25: Tastenecho Tochter
A26: 025.wav | B26: Tastenecho Tochter
A27: 026.wav | B27: Tastenecho Tochter
A28: 027.wav | B28: Tastenecho Tochter
A29: 028.wav | B29: Tastenecho Tochter
A30: 029.wav | B30: Tastenecho Tochter
A31: 030.wav | B31: Tastenecho Tochter
A32: 031.wav | B32: Tastenecho Sohn
A33: 032.wav | B33: Tastenecho Sohn
A34: 033.wav | B34: Tastenecho Sohn
A35: 034.wav | B35: Tastenecho Sohn
A36: 035.wav | B36: Tastenecho Sohn
A37: 036.wav | B37: Tastenecho Sohn
A38: 037.wav | B38: Tastenecho Sohn
A39: 038.wav | B39: Tastenecho Sohn
A40: 039.wav | B40: Tastenecho Sohn
A41: 040.wav | B41: Tastenecho Sohn
A42: 041.wav | B42: Code1 ok | C42: Code korrekt! Herzlich Willkommen Ralf!
A43: 042.wav | B43: Code1 ok | C43: Richtige Eingabe Raalf! Tritt ein!
A44: 043.wav | B44: Code1 ok | C44: OK Ralf die Tür ist nun freigegeben!
A45: 044.wav | B45: Code1 ok | C45: Super! Guten Tag Ralf komm herein!
A46: 045.wav | B46: Code1 ok | C46: Password erkannt Ralf! Tür entsperrt.
A47: 046.wav | B47: Code1 ok | C47: Zifferncode akzeptiert! Hi Ralf! Tür offen.
A48: 047.wav | B48: Code1 ok | C48: Code angenommen! Willkommen daheim Ralf!
A49: 048.wav | B49: Code1 ok | C49: Ziffernfolge richtig! Ralf du kannst nun eintreten!
A50: 049.wav | B50: Code1 ok | C50: Zugangskod positiv! Hallo Ralf Tür offen!
A51: 050.wav | B51: Code1 ok | C51: Tür entsperrt! Einen wunderschönen guten Tag Ralf!
A52: 051.wav | B52: Code2 ok | C52: Code korrekt! Herzlich Willkommen Käisy!
A53: 052.wav | B53: Code2 ok | C53: Richtige Eingabe Käisy! Tritt ein!
A54: 053.wav | B54: Code2 ok | C54: OK Käisy die Tür ist nun freigegeben!
A55: 054.wav | B55: Code2 ok | C55: Super! Guten Tag Käisy komm herein!
A56: 055.wav | B56: Code2 ok | C56: Password erkannt Käisy! Tür entsperrt.
A57: 056.wav | B57: Code2 ok | C57: Zifferncode akzeptiert! Hi Käisy! Tür offen.
A58: 057.wav | B58: Code2 ok | C58: Code angenommen! Wilkommen daheim Käisy!
A59: 058.wav | B59: Code2 ok | C59: Ziffernfolge richtig! Käisy du kannst nun eintreten!
A60: 059.wav | B60: Code2 ok | C60: Zugangscode positiv! Hallo Käisy Tür offen!
A61: 060.wav | B61: Code2 ok | C61: Tür entsperrt! Einen wunderschönen guten Tag Käisy!
A62: 061.wav | B62: Code3 ok | C62: Code korrekt! Herzlich Willkommen Sindie!
A63: 062.wav | B63: Code3 ok | C63: Richtige Eingabe! Tritt ein Sindie!
A64: 063.wav | B64: Code3 ok | C64: OK Sindie die Tür ist nun freigegeben!
A65: 064.wav | B65: Code3 ok | C65: Super! Guten Tag Sindie komm herein!
A66: 065.wav | B66: Code3 ok | C66: Pasword erkannt Sindie! Tür entsperrt.
A67: 066.wav | B67: Code3 ok | C67: Ziffernkod akzeptiert! Hi Sindie! Tür offen.
A68: 067.wav | B68: Code3 ok | C68: Code angenommen! Wilkommen daheim Sindie!
A69: 068.wav | B69: Code3 ok | C69: Ziffernfolge richtig! Sindie du kannst nun eintreten!
A70: 069.wav | B70: Code3 ok | C70: Zugangscode positiv! Hallo Sindie Tür offen!
A71: 070.wav | B71: Code3 ok | C71: Tür wurde entsperrt! Einen wunderschönen guten Tag Sindi!
A72: 071.wav | B72: Code4 ok
A73: 072.wav | B73: Code4 ok
A74: 073.wav | B74: Code4 ok
A75: 074.wav | B75: Code4 ok
A76: 075.wav | B76: Code4 ok
A77: 076.wav | B77: Code4 ok
A78: 077.wav | B78: Code4 ok
A79: 078.wav | B79: Code4 ok
A80: 079.wav | B80: Code4 ok
A81: 080.wav | B81: Code falsch
A82: 081.wav | B82: Code falsch | C82: Lieber Einbrecher! Das hat doch keinen Zweck! Der Code ist nicht zu knacken!
A83: 082.wav | B83: Code falsch | C83: Mach nur weiter! Noch paar mal und dann wird automatisch geklingelt!
A84: 083.wav | B84: Code falsch | C84: Hast du den Code nur vergessen oder bist du doch ein Einbrecher?
A85: 084.wav | B85: Code falsch | C85: Code falsch! Videoaufzeichnung online! Wohnst du Hier wirklich?
A86: 085.wav | B86: Code falsch | C86: Kann schon mal passieren! Wiederhole es oder nimm den Schlüssel!
A87: 086.wav | B87: Code falsch | C87: Ojee, Gedächtnisverlust? Hast du Kopf wie Sieb, musst du aufschreiben!
A88: 087.wav | B88: Code falsch | C88: Vertippt oder brauchst Du ne Brille? Versuchs noch einmal.
A89: 088.wav | B89: Code falsch | C89: Eingabe inkorrekt! Versuchs noch einmal oder lass es!
A90: 089.wav | B90: Code falsch | C90: Tja Pech gehabt! Die Tür ist eben sicher. Paar Versuche haste noch!
A91: 090.wav | B91: Code falsch | C91: noch was? Ich glaube nicht! Vielleicht macht dir ja jemand von innen auf.
A92: 091.wav | B92: Code 3x falsch | C92: Jetzt reicht es aber! 3 mal falsch heißt Hausbesitzer anklingeln!
A93: 092.wav | B93: Code 3x falsch | C93: Ich habe Dich ja gewarnt! Nun wird geklingelt und per Mobilfunk angerufen!
A94: 093.wav | B94: Code 3x falsch | C94: Sag mal, hast Du was an den Ohren? Du kommst Hier nicht rein!
A95: 094.wav | B95: Code 3x falsch | C95: 3 Fehler bei der Eingabe! Du kannst hier nicht wohnen! Besitzer wird angerufen!
A96: 095.wav | B96: Code 3x falsch | C96: Schon wieder falsch! Türklingel und Handy wird aktiviert! Videoaufzeichnung online!
A97: 096.wav | B97: Code 3x falsch | C97: Klappt wohl nicht dein Einbruchsversuch? Ich versuche es mal mit klingeln!
A98: 097.wav | B98: Code 3x falsch | C98: Alle guten Dinge sind drei! Die hast Du aber aufgebraucht! Besitzer wurde informiert!
A99: 098.wav | B99: Code 3x falsch | C99: Wird das heute noch was? Ich glaube nicht! Vielleicht macht dir ja jemand von innen auf.
A100: 099.wav | B100: Code 3x falsch | C100: Vielleicht solltest Du lieber was für dein Gedächtnis tun und nicht hier einbrechen!
A101: 100.wav | B101: Code 3x falsch | C101: Mensch wie oft willst du noch so einen Mist eingeben? Türklingel und Mobilwarnung aktiviert!
A102: 101.wav | B102: Zeitüberschreitung Eingabe | C102: Das dauert echt zu lange! Bitte Code neu ein geben!
A103: 102.wav | B103: Zeitüberschreitung Eingabe | C103: Eingabezeit überschritten! Bitte wiederholen Sie die Eingabe!
A104: 103.wav | B104: Zeitüberschreitung Eingabe | C104: Der Code wurde nicht vollständig eingegeben. Bitte wiederholen!
A105: 104.wav | B105: Zeitüberschreitung Eingabe | C105: Das Zeitfenster für die Eingabe wurde überschritten! Bitte neu versuchen!
A106: 105.wav | B106: Zeitüberschreitung Eingabe | C106: Tick Tack Tick Tack, die Uhr läuft ab! Bitte code neu ein geben!
A107: 106.wav | B107: Zeitüberschreitung Eingabe | C107: Bitte nicht soo langsam eingeben. Das muss beim nächsten Mal schneller gehen
A108: 107.wav | B108: Zeitüberschreitung Eingabe | C108: Wer zu lange wartet, hat Pech. Versuchs bitte noch ein mal!
A109: 108.wav | B109: Zeitüberschreitung Eingabe | C109: Die Zeit ist um! Nun musst du von Vorne anfangen!
A110: 109.wav | B110: Zeitüberschreitung Eingabe | C110: Manchmal soll es nicht zu schnell gehen! Aber hier schoon! Bitte noch ein mal!
A111: 110.wav | B111: Zeitüberschreitung Eingabe | C111: Da du zu wenig Ziffern eingegeben hast, wird nun alles zurück gesetzt!
A112: 111.wav | B112: Reset durch # | C112: Achtung! Alle bisherigen Eingaben wurden durch Eingabe, Raute, zurück gesetzt.
A113: 112.wav | B113: Reset durch # | C113: Reset aller Eingaben erfolgreich durchgeführt!
A114: 113.wav | B114: Reset durch # | C114: Neu start erfolgreich! Bitte Eingaben wiederholen!
A115: 114.wav | B115: Reset durch # | C115: Alle bisherigen Inputs wurden gelöscht! Bitte neu beginnen!
A116: 115.wav | B116: Reset durch # | C116: Wie angefordert, wurde der Controller zurück gesetzt!
A117: 116.wav | B117: Reset durch # | C117: Hard Reset erfolgreich! Bitte um Eingabe wiederholung!
A118: 117.wav | B118: Reset durch # | C118: Hoppla! Alle Eingaben wurden wie gewünscht gelöscht!
A119: 118.wav | B119: Reset durch # | C119: Hast Dich wohl vertippt? Macht nichts, fang einfach neu an!
A120: 119.wav | B120: Reset durch # | C120: Code gelöscht! Sie können neu beginnen! Viel Erfolg!
A121: 120.wav | B121: Reset durch # | C121: Ups! Falsche Taste gedrückt? Fang einfach neu an!
A122: 121.wav | B122: Tastenecho allgemein
A123: 122.wav | B123: Tastenecho allgemein
A124: 123.wav | B124: Tastenecho allgemein
A125: 124.wav | B125: Tastenecho allgemein
A126: 125.wav | B126: Tastenecho allgemein
A127: 126.wav | B127: Tastenecho allgemein
A128: 127.wav | B128: Tastenecho allgemein
A129: 128.wav | B129: Tastenecho allgemein
A130: 129.wav | B130: Tastenecho allgemein
A131: 130.wav | B131: Tastenecho allgemein

Sheet Tabelle3
A1: If File = 1 Then | C1: 8 | D1: 16 | E1: 32 | F1: 64 | G1: 128 | H1: 1 | I1: 2 | J1: 4 | K1: 0 = aktiv
A2: ' 81664 124
A3: Porta = | B3: B | C3: a | D3: a | E3: a | F3: a | G3: a | H3: 1 | I3: a | J3: a | K3: =SUM(C3:J3) -> 1 | L3: 1 | M3: =EXACT(K3,L3) -> TRUE
A4: Elseif File = 2 Then
A5: Porta = | B5: B | C5: a | D5: a | E5: a | F5: a | G5: a | H5: a | I5: 2 | J5: a | K5: =SUM(C5:J5) -> 2 | L5: 2 | M5: =EXACT(K5,L5) -> TRUE
A6: Elseif File = 3 Then
A7: Porta = | B7: B | C7: a | D7: a | E7: a | F7: a | G7: a | H7: 1 | I7: 2 | J7: a | K7: =SUM(C7:J7) -> 3 | L7: 3 | M7: =EXACT(K7,L7) -> TRUE
A8: Elseif File = 4 Then
A9: Porta = | B9: B | C9: a | D9: a | E9: a | F9: a | G9: a | H9: a | I9: a | J9: 4 | K9: =SUM(C9:J9) -> 4 | L9: 4 | M9: =EXACT(K9,L9) -> TRUE
A10: Elseif File = 5 Then
A11: Porta = | B11: B | C11: a | D11: a | E11: a | F11: a | G11: a | H11: 1 | I11: a | J11: 4 | K11: =SUM(C11:J11) -> 5 | L11: 5 | M11: =EXACT(K11,L11) -> TRUE
A12: Elseif File = 6 Then
A13: Porta = | B13: B | C13: a | D13: a | E13: a | F13: a | G13: a | H13: a | I13: 2 | J13: 4 | K13: =SUM(C13:J13) -> 6 | L13: 6 | M13: =EXACT(K13,L13) -> TRUE
A14: Elseif File = 7 Then
A15: Porta = | B15: B | C15: a | D15: a | E15: a | F15: a | G15: a | H15: 1 | I15: 2 | J15: 4 | K15: =SUM(C15:J15) -> 7 | L15: 7 | M15: =EXACT(K15,L15) -> TRUE
A16: Elseif File = 8 Then
A17: Porta = | B17: B | C17: 8 | D17: a | E17: a | F17: a | G17: a | H17: a | I17: a | J17: a | K17: =SUM(C17:J17) -> 8 | L17: 8 | M17: =EXACT(K17,L17) -> TRUE
A18: Elseif File = 9 Then
A19: Porta = | B19: B | C19: 8 | D19: a | E19: a | F19: a | G19: a | H19: 1 | I19: a | J19: a | K19: =SUM(C19:J19) -> 9 | L19: 9 | M19: =EXACT(K19,L19) -> TRUE
A20: Elseif File = 10 Then
A21: Porta = | B21: B | C21: 8 | D21: a | E21: a | F21: a | G21: a | H21: a | I21: 2 | J21: a | K21: =SUM(C21:J21) -> 10 | L21: 10 | M21: =EXACT(K21,L21) -> TRUE
A22: Elseif File = 11 Then
A23: Porta = | B23: B | C23: 8 | D23: a | E23: a | F23: a | G23: a | H23: 1 | I23: 2 | J23: a | K23: =SUM(C23:J23) -> 11 | L23: 11 | M23: =EXACT(K23,L23) -> TRUE
A24: Elseif File = 12 Then
A25: Porta = | B25: B | C25: 8 | D25: a | E25: a | F25: a | G25: a | H25: a | I25: a | J25: 4 | K25: =SUM(C25:J25) -> 12 | L25: 12 | M25: =EXACT(K25,L25) -> TRUE
A26: Elseif File = 13 Then
A27: Porta = | B27: B | C27: 8 | D27: a | E27: a | F27: a | G27: a | H27: 1 | I27: a | J27: 4 | K27: =SUM(C27:J27) -> 13 | L27: 13 | M27: =EXACT(K27,L27) -> TRUE
A28: Elseif File = 14 Then
A29: Porta = | B29: B | C29: 8 | D29: a | E29: a | F29: a | G29: a | H29: a | I29: 2 | J29: 4 | K29: =SUM(C29:J29) -> 14 | L29: 14 | M29: =EXACT(K29,L29) -> TRUE
A30: Elseif File = 15 Then
A31: Porta = | B31: B | C31: 8 | D31: a | E31: a | F31: a | G31: a | H31: 1 | I31: 2 | J31: 4 | K31: =SUM(C31:J31) -> 15 | L31: 15 | M31: =EXACT(K31,L31) -> TRUE
A32: Elseif File = 16 Then
A33: Porta = | B33: B | C33: a | D33: 16 | E33: a | F33: a | G33: a | H33: a | I33: a | J33: a | K33: =SUM(C33:J33) -> 16 | L33: 16 | M33: =EXACT(K33,L33) -> TRUE
A34: Elseif File = 17 Then
A35: Porta = | B35: B | C35: a | D35: 16 | E35: a | F35: a | G35: a | H35: 1 | I35: a | J35: a | K35: =SUM(C35:J35) -> 17 | L35: 17 | M35: =EXACT(K35,L35) -> TRUE
A36: Elseif File = 18 Then
A37: Porta = | B37: B | C37: a | D37: 16 | E37: a | F37: a | G37: a | H37: a | I37: 2 | J37: a | K37: =SUM(C37:J37) -> 18 | L37: 18 | M37: =EXACT(K37,L37) -> TRUE
A38: Elseif File = 19 Then
A39: Porta = | B39: B | C39: a | D39: 16 | E39: a | F39: a | G39: a | H39: 1 | I39: 2 | J39: a | K39: =SUM(C39:J39) -> 19 | L39: 19 | M39: =EXACT(K39,L39) -> TRUE
A40: Elseif File = 20 Then
A41: Porta = | B41: B | C41: a | D41: 16 | E41: a | F41: a | G41: a | H41: a | I41: a | J41: 4 | K41: =SUM(C41:J41) -> 20 | L41: 20 | M41: =EXACT(K41,L41) -> TRUE
A42: Elseif File = 21 Then
A43: Porta = | B43: B | C43: a | D43: 16 | E43: a | F43: a | G43: a | H43: 1 | I43: a | J43: 4 | K43: =SUM(C43:J43) -> 21 | L43: 21 | M43: =EXACT(K43,L43) -> TRUE
A44: Elseif File = 22 Then
A45: Porta = | B45: B | C45: a | D45: 16 | E45: a | F45: a | G45: a | H45: a | I45: 2 | J45: 4 | K45: =SUM(C45:J45) -> 22 | L45: 22 | M45: =EXACT(K45,L45) -> TRUE
A46: Elseif File = 23 Then
A47: Porta = | B47: B | C47: a | D47: 16 | E47: a | F47: a | G47: a | H47: 1 | I47: 2 | J47: 4 | K47: =SUM(C47:J47) -> 23 | L47: 23 | M47: =EXACT(K47,L47) -> TRUE
A48: Elseif File = 24 Then
A49: Porta = | B49: B | C49: 8 | D49: 16 | E49: a | F49: a | G49: a | H49: a | I49: a | J49: a | K49: =SUM(C49:J49) -> 24 | L49: 24 | M49: =EXACT(K49,L49) -> TRUE
A50: Elseif File = 25 Then
A51: Porta = | B51: B | C51: 8 | D51: 16 | E51: a | F51: a | G51: a | H51: 1 | I51: a | J51: a | K51: =SUM(C51:J51) -> 25 | L51: 25 | M51: =EXACT(K51,L51) -> TRUE
A52: Elseif File = 26 Then
A53: Porta = | B53: B | C53: 8 | D53: 16 | E53: a | F53: a | G53: a | H53: a | I53: 2 | J53: a | K53: =SUM(C53:J53) -> 26 | L53: 26 | M53: =EXACT(K53,L53) -> TRUE
A54: Elseif File = 27 Then
A55: Porta = | B55: B | C55: 8 | D55: 16 | E55: a | F55: a | G55: a | H55: 1 | I55: 2 | J55: a | K55: =SUM(C55:J55) -> 27 | L55: 27 | M55: =EXACT(K55,L55) -> TRUE
A56: Elseif File = 28 Then
A57: Porta = | B57: B | C57: 8 | D57: 16 | E57: a | F57: a | G57: a | H57: a | I57: a | J57: 4 | K57: =SUM(C57:J57) -> 28 | L57: 28 | M57: =EXACT(K57,L57) -> TRUE
A58: Elseif File = 29 Then
A59: Porta = | B59: B | C59: 8 | D59: 16 | E59: a | F59: a | G59: a | H59: 1 | I59: a | J59: 4 | K59: =SUM(C59:J59) -> 29 | L59: 29 | M59: =EXACT(K59,L59) -> TRUE
A60: Elseif File = 30 Then
A61: Porta = | B61: B | C61: 8 | D61: 16 | E61: a | F61: a | G61: a | H61: a | I61: 2 | J61: 4 | K61: =SUM(C61:J61) -> 30 | L61: 30 | M61: =EXACT(K61,L61) -> TRUE
A62: Elseif File = 31 Then
A63: Porta = | B63: B | C63: 8 | D63: 16 | E63: a | F63: a | G63: a | H63: 1 | I63: 2 | J63: 4 | K63: =SUM(C63:J63) -> 31 | L63: 31 | M63: =EXACT(K63,L63) -> TRUE
A64: Elseif File = 32 Then
A65: Porta = | B65: B | C65: a | D65: a | E65: 32 | F65: a | G65: a | H65: a | I65: a | J65: a | K65: =SUM(C65:J65) -> 32 | L65: 32 | M65: =EXACT(K65,L65) -> TRUE
A66: Elseif File = 33 Then
A67: Porta = | B67: B | C67: a | D67: a | E67: 32 | F67: a | G67: a | H67: 1 | I67: a | J67: a | K67: =SUM(C67:J67) -> 33 | L67: 33 | M67: =EXACT(K67,L67) -> TRUE
A68: Elseif File = 34 Then
A69: Porta = | B69: B | C69: a | D69: a | E69: 32 | F69: a | G69: a | H69: a | I69: 2 | J69: a | K69: =SUM(C69:J69) -> 34 | L69: 34 | M69: =EXACT(K69,L69) -> TRUE
A70: Elseif File = 35 Then
A71: Porta = | B71: B | C71: a | D71: a | E71: 32 | F71: a | G71: a | H71: 1 | I71: 2 | J71: a | K71: =SUM(C71:J71) -> 35 | L71: 35 | M71: =EXACT(K71,L71) -> TRUE
A72: Elseif File = 36 Then
A73: Porta = | B73: B | C73: a | D73: a | E73: 32 | F73: a | G73: a | H73: a | I73: a | J73: 4 | K73: =SUM(C73:J73) -> 36 | L73: 36 | M73: =EXACT(K73,L73) -> TRUE
A74: Elseif File = 37 Then
A75: Porta = | B75: B | C75: a | D75: a | E75: 32 | F75: a | G75: a | H75: 1 | I75: a | J75: 4 | K75: =SUM(C75:J75) -> 37 | L75: 37 | M75: =EXACT(K75,L75) -> TRUE
A76: Elseif File = 38 Then
A77: Porta = | B77: B | C77: a | D77: a | E77: 32 | F77: a | G77: a | H77: a | I77: 2 | J77: 4 | K77: =SUM(C77:J77) -> 38 | L77: 38 | M77: =EXACT(K77,L77) -> TRUE
A78: Elseif File = 39 Then
A79: Porta = | B79: B | C79: a | D79: a | E79: 32 | F79: a | G79: a | H79: 1 | I79: 2 | J79: 4 | K79: =SUM(C79:J79) -> 39 | L79: 39 | M79: =EXACT(K79,L79) -> TRUE
A80: Elseif File = 40 Then
A81: Porta = | B81: B | C81: 8 | D81: a | E81: 32 | F81: a | G81: a | H81: a | I81: a | J81: a | K81: =SUM(C81:J81) -> 40 | L81: 40 | M81: =EXACT(K81,L81) -> TRUE
A82: Elseif File = 41 Then
A83: Porta = | B83: B | C83: 8 | D83: a | E83: 32 | F83: a | G83: a | H83: 1 | I83: a | J83: a | K83: =SUM(C83:J83) -> 41 | L83: 41 | M83: =EXACT(K83,L83) -> TRUE
A84: Elseif File = 42 Then
A85: Porta = | B85: B | C85: 8 | D85: a | E85: 32 | F85: a | G85: a | H85: a | I85: 2 | J85: a | K85: =SUM(C85:J85) -> 42 | L85: 42 | M85: =EXACT(K85,L85) -> TRUE
A86: Elseif File = 43 Then
A87: Porta = | B87: B | C87: 8 | D87: a | E87: 32 | F87: a | G87: a | H87: 1 | I87: 2 | J87: a | K87: =SUM(C87:J87) -> 43 | L87: 43 | M87: =EXACT(K87,L87) -> TRUE
A88: Elseif File = 44 Then
A89: Porta = | B89: B | C89: 8 | D89: a | E89: 32 | F89: a | G89: a | H89: a | I89: a | J89: 4 | K89: =SUM(C89:J89) -> 44 | L89: 44 | M89: =EXACT(K89,L89) -> TRUE
A90: Elseif File = 45 Then
A91: Porta = | B91: B | C91: 8 | D91: a | E91: 32 | F91: a | G91: a | H91: 1 | I91: a | J91: 4 | K91: =SUM(C91:J91) -> 45 | L91: 45 | M91: =EXACT(K91,L91) -> TRUE
A92: Elseif File = 46 Then
A93: Porta = | B93: B | C93: 8 | D93: a | E93: 32 | F93: a | G93: a | H93: a | I93: 2 | J93: 4 | K93: =SUM(C93:J93) -> 46 | L93: 46 | M93: =EXACT(K93,L93) -> TRUE
A94: Elseif File = 47 Then
A95: Porta = | B95: B | C95: 8 | D95: a | E95: 32 | F95: a | G95: a | H95: 1 | I95: 2 | J95: 4 | K95: =SUM(C95:J95) -> 47 | L95: 47 | M95: =EXACT(K95,L95) -> TRUE
A96: Elseif File = 48 Then
A97: Porta = | B97: B | C97: a | D97: 16 | E97: 32 | F97: a | G97: a | H97: a | I97: a | J97: a | K97: =SUM(C97:J97) -> 48 | L97: 48 | M97: =EXACT(K97,L97) -> TRUE
A98: Elseif File = 49 Then
A99: Porta = | B99: B | C99: a | D99: 16 | E99: 32 | F99: a | G99: a | H99: 1 | I99: a | J99: a | K99: =SUM(C99:J99) -> 49 | L99: 49 | M99: =EXACT(K99,L99) -> TRUE
A100: Elseif File = 50 Then
A101: Porta = | B101: B | C101: a | D101: 16 | E101: 32 | F101: a | G101: a | H101: a | I101: 2 | J101: a | K101: =SUM(C101:J101) -> 50 | L101: 50 | M101: =EXACT(K101,L101) -> TRUE
A102: Elseif File = 51 Then
A103: Porta = | B103: B | C103: a | D103: 16 | E103: 32 | F103: a | G103: a | H103: 1 | I103: 2 | J103: a | K103: =SUM(C103:J103) -> 51 | L103: 51 | M103: =EXACT(K103,L103) -> TRUE
A104: Elseif File = 52 Then
A105: Porta = | B105: B | C105: a | D105: 16 | E105: 32 | F105: a | G105: a | H105: a | I105: a | J105: 4 | K105: =SUM(C105:J105) -> 52 | L105: 52 | M105: =EXACT(K105,L105) -> TRUE
A106: Elseif File = 53 Then
A107: Porta = | B107: B | C107: a | D107: 16 | E107: 32 | F107: a | G107: a | H107: 1 | I107: a | J107: 4 | K107: =SUM(C107:J107) -> 53 | L107: 53 | M107: =EXACT(K107,L107) -> TRUE
A108: Elseif File = 54 Then
A109: Porta = | B109: B | C109: a | D109: 16 | E109: 32 | F109: a | G109: a | H109: a | I109: 2 | J109: 4 | K109: =SUM(C109:J109) -> 54 | L109: 54 | M109: =EXACT(K109,L109) -> TRUE
A110: Elseif File = 55 Then
A111: Porta = | B111: B | C111: a | D111: 16 | E111: 32 | F111: a | G111: a | H111: 1 | I111: 2 | J111: 4 | K111: =SUM(C111:J111) -> 55 | L111: 55 | M111: =EXACT(K111,L111) -> TRUE
A112: Elseif File = 56 Then
A113: Porta = | B113: B | C113: 8 | D113: 16 | E113: 32 | F113: a | G113: a | H113: a | I113: a | J113: a | K113: =SUM(C113:J113) -> 56 | L113: 56 | M113: =EXACT(K113,L113) -> TRUE
A114: Elseif File = 57 Then
A115: Porta = | B115: B | C115: 8 | D115: 16 | E115: 32 | F115: a | G115: a | H115: 1 | I115: a | J115: a | K115: =SUM(C115:J115) -> 57 | L115: 57 | M115: =EXACT(K115,L115) -> TRUE
A116: Elseif File = 58 Then
A117: Porta = | B117: B | C117: 8 | D117: 16 | E117: 32 | F117: a | G117: a | H117: a | I117: 2 | J117: a | K117: =SUM(C117:J117) -> 58 | L117: 58 | M117: =EXACT(K117,L117) -> TRUE
A118: Elseif File = 59 Then
A119: Porta = | B119: B | C119: 8 | D119: 16 | E119: 32 | F119: a | G119: a | H119: 1 | I119: 2 | J119: a | K119: =SUM(C119:J119) -> 59 | L119: 59 | M119: =EXACT(K119,L119) -> TRUE
A120: Elseif File = 60 Then
A121: Porta = | B121: B | C121: 8 | D121: 16 | E121: 32 | F121: a | G121: a | H121: a | I121: a | J121: 4 | K121: =SUM(C121:J121) -> 60 | L121: 60 | M121: =EXACT(K121,L121) -> TRUE
A122: Elseif File = 61 Then
A123: Porta = | B123: B | C123: 8 | D123: 16 | E123: 32 | F123: a | G123: a | H123: 1 | I123: a | J123: 4 | K123: =SUM(C123:J123) -> 61 | L123: 61 | M123: =EXACT(K123,L123) -> TRUE
A124: Elseif File = 62 Then
A125: Porta = | B125: B | C125: 8 | D125: 16 | E125: 32 | F125: a | G125: a | H125: a | I125: 2 | J125: 4 | K125: =SUM(C125:J125) -> 62 | L125: 62 | M125: =EXACT(K125,L125) -> TRUE
A126: Elseif File = 63 Then
A127: Porta = | B127: B | C127: 8 | D127: 16 | E127: 32 | F127: a | G127: a | H127: 1 | I127: 2 | J127: 4 | K127: =SUM(C127:J127) -> 63 | L127: 63 | M127: =EXACT(K127,L127) -> TRUE
A128: Elseif File = 64 Then
A129: Porta = | B129: B | C129: a | D129: a | E129: a | F129: 64 | G129: a | H129: a | I129: a | J129: a | K129: =SUM(C129:J129) -> 64 | L129: 64 | M129: =EXACT(K129,L129) -> TRUE
A130: Elseif File = 65 Then
A131: Porta = | B131: B | C131: a | D131: a | E131: a | F131: 64 | G131: a | H131: 1 | I131: a | J131: a | K131: =SUM(C131:J131) -> 65 | L131: 65 | M131: =EXACT(K131,L131) -> TRUE
A132: Elseif File = 66 Then
A133: Porta = | B133: B | C133: a | D133: a | E133: a | F133: 64 | G133: a | H133: a | I133: 2 | J133: a | K133: =SUM(C133:J133) -> 66 | L133: 66 | M133: =EXACT(K133,L133) -> TRUE
A134: Elseif File = 67 Then
A135: Porta = | B135: B | C135: a | D135: a | E135: a | F135: 64 | G135: a | H135: 1 | I135: 2 | J135: a | K135: =SUM(C135:J135) -> 67 | L135: 67 | M135: =EXACT(K135,L135) -> TRUE
A136: Elseif File = 68 Then
A137: Porta = | B137: B | C137: a | D137: a | E137: a | F137: 64 | G137: a | H137: a | I137: a | J137: 4 | K137: =SUM(C137:J137) -> 68 | L137: 68 | M137: =EXACT(K137,L137) -> TRUE
A138: Elseif File = 69 Then
A139: Porta = | B139: B | C139: a | D139: a | E139: a | F139: 64 | G139: a | H139: 1 | I139: a | J139: 4 | K139: =SUM(C139:J139) -> 69 | L139: 69 | M139: =EXACT(K139,L139) -> TRUE
A140: Elseif File = 70 Then
A141: Porta = | B141: B | C141: a | D141: a | E141: a | F141: 64 | G141: a | H141: a | I141: 2 | J141: 4 | K141: =SUM(C141:J141) -> 70 | L141: 70 | M141: =EXACT(K141,L141) -> TRUE
A142: Elseif File = 71 Then
A143: Porta = | B143: B | C143: a | D143: a | E143: a | F143: 64 | G143: a | H143: 1 | I143: 2 | J143: 4 | K143: =SUM(C143:J143) -> 71 | L143: 71 | M143: =EXACT(K143,L143) -> TRUE
A144: Elseif File = 72 Then
A145: Porta = | B145: B | C145: 8 | D145: a | E145: a | F145: 64 | G145: a | H145: a | I145: a | J145: a | K145: =SUM(C145:J145) -> 72 | L145: 72 | M145: =EXACT(K145,L145) -> TRUE
A146: Elseif File = 73 Then
A147: Porta = | B147: B | C147: 8 | D147: a | E147: a | F147: 64 | G147: a | H147: 1 | I147: a | J147: a | K147: =SUM(C147:J147) -> 73 | L147: 73 | M147: =EXACT(K147,L147) -> TRUE
A148: Elseif File = 74 Then
A149: Porta = | B149: B | C149: 8 | D149: a | E149: a | F149: 64 | G149: a | H149: a | I149: 2 | J149: a | K149: =SUM(C149:J149) -> 74 | L149: 74 | M149: =EXACT(K149,L149) -> TRUE
A150: Elseif File = 75 Then
A151: Porta = | B151: B | C151: 8 | D151: a | E151: a | F151: 64 | G151: a | H151: 1 | I151: 2 | J151: a | K151: =SUM(C151:J151) -> 75 | L151: 75 | M151: =EXACT(K151,L151) -> TRUE
A152: Elseif File = 76 Then
A153: Porta = | B153: B | C153: 8 | D153: a | E153: a | F153: 64 | G153: a | H153: a | I153: a | J153: 4 | K153: =SUM(C153:J153) -> 76 | L153: 76 | M153: =EXACT(K153,L153) -> TRUE
A154: Elseif File = 77 Then
A155: Porta = | B155: B | C155: 8 | D155: a | E155: a | F155: 64 | G155: a | H155: 1 | I155: a | J155: 4 | K155: =SUM(C155:J155) -> 77 | L155: 77 | M155: =EXACT(K155,L155) -> TRUE
A156: Elseif File = 78 Then
A157: Porta = | B157: B | C157: 8 | D157: a | E157: a | F157: 64 | G157: a | H157: a | I157: 2 | J157: 4 | K157: =SUM(C157:J157) -> 78 | L157: 78 | M157: =EXACT(K157,L157) -> TRUE
A158: Elseif File = 79 Then
A159: Porta = | B159: B | C159: 8 | D159: a | E159: a | F159: 64 | G159: a | H159: 1 | I159: 2 | J159: 4 | K159: =SUM(C159:J159) -> 79 | L159: 79 | M159: =EXACT(K159,L159) -> TRUE
A160: Elseif File = 80 Then
A161: Porta = | B161: B | C161: a | D161: 16 | E161: a | F161: 64 | G161: a | H161: a | I161: a | J161: a | K161: =SUM(C161:J161) -> 80 | L161: 80 | M161: =EXACT(K161,L161) -> TRUE
A162: Elseif File = 81 Then
A163: Porta = | B163: B | C163: a | D163: 16 | E163: a | F163: 64 | G163: a | H163: 1 | I163: a | J163: a | K163: =SUM(C163:J163) -> 81 | L163: 81 | M163: =EXACT(K163,L163) -> TRUE
A164: Elseif File = 82 Then
A165: Porta = | B165: B | C165: a | D165: 16 | E165: a | F165: 64 | G165: a | H165: a | I165: 2 | J165: a | K165: =SUM(C165:J165) -> 82 | L165: 82 | M165: =EXACT(K165,L165) -> TRUE
A166: Elseif File = 83 Then
A167: Porta = | B167: B | C167: a | D167: 16 | E167: a | F167: 64 | G167: a | H167: 1 | I167: 2 | J167: a | K167: =SUM(C167:J167) -> 83 | L167: 83 | M167: =EXACT(K167,L167) -> TRUE
A168: Elseif File = 84 Then
A169: Porta = | B169: B | C169: a | D169: 16 | E169: a | F169: 64 | G169: a | H169: a | I169: a | J169: 4 | K169: =SUM(C169:J169) -> 84 | L169: 84 | M169: =EXACT(K169,L169) -> TRUE
A170: Elseif File = 85 Then
A171: Porta = | B171: B | C171: a | D171: 16 | E171: a | F171: 64 | G171: a | H171: 1 | I171: a | J171: 4 | K171: =SUM(C171:J171) -> 85 | L171: 85 | M171: =EXACT(K171,L171) -> TRUE
A172: Elseif File = 86 Then
A173: Porta = | B173: B | C173: a | D173: 16 | E173: a | F173: 64 | G173: a | H173: a | I173: 2 | J173: 4 | K173: =SUM(C173:J173) -> 86 | L173: 86 | M173: =EXACT(K173,L173) -> TRUE
A174: Elseif File = 87 Then
A175: Porta = | B175: B | C175: a | D175: 16 | E175: a | F175: 64 | G175: a | H175: 1 | I175: 2 | J175: 4 | K175: =SUM(C175:J175) -> 87 | L175: 87 | M175: =EXACT(K175,L175) -> TRUE
A176: Elseif File = 88 Then
A177: Porta = | B177: B | C177: 8 | D177: 16 | E177: a | F177: 64 | G177: a | H177: a | I177: a | J177: a | K177: =SUM(C177:J177) -> 88 | L177: 88 | M177: =EXACT(K177,L177) -> TRUE
A178: Elseif File = 89 Then
A179: Porta = | B179: B | C179: 8 | D179: 16 | E179: a | F179: 64 | G179: a | H179: 1 | I179: a | J179: a | K179: =SUM(C179:J179) -> 89 | L179: 89 | M179: =EXACT(K179,L179) -> TRUE
A180: Elseif File = 90 Then
A181: Porta = | B181: B | C181: 8 | D181: 16 | E181: a | F181: 64 | G181: a | H181: a | I181: 2 | J181: a | K181: =SUM(C181:J181) -> 90 | L181: 90 | M181: =EXACT(K181,L181) -> TRUE
A182: Elseif File = 91 Then
A183: Porta = | B183: B | C183: 8 | D183: 16 | E183: a | F183: 64 | G183: a | H183: 1 | I183: 2 | J183: a '8 + a6 +64 = 88 | K183: =SUM(C183:J183) -> 91 | L183: 91 | M183: =EXACT(K183,L183) -> TRUE
A184: Elseif File = 92 Then
A185: Porta = | B185: B | C185: 8 | D185: 16 | E185: a | F185: 64 | G185: a | H185: a | I185: a | J185: 4 | K185: =SUM(C185:J185) -> 92 | L185: 92 | M185: =EXACT(K185,L185) -> TRUE
A186: Elseif File = 93 Then
A187: Porta = | B187: B | C187: 8 | D187: 16 | E187: a | F187: 64 | G187: a | H187: 1 | I187: a | J187: 4 | K187: =SUM(C187:J187) -> 93 | L187: 93 | M187: =EXACT(K187,L187) -> TRUE
A188: Elseif File = 94 Then
A189: Porta = | B189: B | C189: 8 | D189: 16 | E189: a | F189: 64 | G189: a | H189: a | I189: 2 | J189: 4 | K189: =SUM(C189:J189) -> 94 | L189: 94 | M189: =EXACT(K189,L189) -> TRUE
A190: Elseif File = 95 Then
A191: Porta = | B191: B | C191: 8 | D191: 16 | E191: a | F191: 64 | G191: a | H191: 1 | I191: 2 | J191: 4 | K191: =SUM(C191:J191) -> 95 | L191: 95 | M191: =EXACT(K191,L191) -> TRUE
A192: Elseif File = 96 Then
A193: Porta = | B193: B | C193: a | D193: a | E193: 32 | F193: 64 | G193: a | H193: a | I193: a | J193: a '32 + 64 =96 | K193: =SUM(C193:J193) -> 96 | L193: 96 | M193: =EXACT(K193,L193) -> TRUE
A194: Elseif File = 97 Then
A195: Porta = | B195: B | C195: a | D195: a | E195: 32 | F195: 64 | G195: a | H195: 1 | I195: a | J195: a | K195: =SUM(C195:J195) -> 97 | L195: 97 | M195: =EXACT(K195,L195) -> TRUE
A196: Elseif File = 98 Then
A197: Porta = | B197: B | C197: a | D197: a | E197: 32 | F197: 64 | G197: a | H197: a | I197: 2 | J197: a | K197: =SUM(C197:J197) -> 98 | L197: 98 | M197: =EXACT(K197,L197) -> TRUE
A198: Elseif File = 99 Then
A199: Porta = | B199: B | C199: a | D199: a | E199: 32 | F199: 64 | G199: a | H199: 1 | I199: 2 | J199: a | K199: =SUM(C199:J199) -> 99 | L199: 99 | M199: =EXACT(K199,L199) -> TRUE
A200: Elseif File = 100 Then
... 311 more rows
